[Event "EYCC 2017"]
[Site "Mamaia"]
[Date "2017.09.06"]
[Round "2"]
[White "Karavitaki, Evaggelia"]
[Black "Can, Isil"]
[Result "0-1"]
[ECO "C55"]
[WhiteElo "1703"]
[BlackElo "1945"]
[Annotator "NA"]
[PlyCount "78"]
[EventDate "2017.??.??"]
[EventType "swiss"]
[EventCountry "ROU"]
[SourceTitle "playchess.com"]
[Source "ChessBase"]
[SourceQuality "1"]
[TimeControl "40/5400+30:1800+30"]

1. e4 {[%emt 0:00:00]} e5 {[%emt 0:00:17]} 2. Nf3 {[%emt 0:00:00]} Nc6 {[%emt 0:00:06]} 3. d4 {[%emt 0:00:00]} exd4 {[%emt 0:00:05]} 4. Bc4 {[%emt 0:00:00]} Nf6 {[%emt 0:00:09]} 5. e5 {[%emt 0:00:02]} d5 {[%emt 0:00:17]} 6. Bb5 {[%emt 0:00:06]} Ne4 {[%emt 0:00:08]} 7. Nxd4 {[%emt 0:00:13]} Bd7 {[%emt 0:00:26]} 8. Bxc6 {[%emt 0:00:07]} bxc6 {[%emt 0:00:07]} 9. O-O {[%emt 0:00:22]} Bc5 {[%emt 0:00:10]} 10. Be3 {[%emt 0:00:12]} Bb6 {[%emt 0:00:10]} 11. f3 {[%emt 0:03:42]} Ng5 {[%emt 0:00:50]} 12. f4 {[%emt 0:00:50]} Ne4 {[%emt 0:00:56]} 13. Nd2 {[%emt 0:01:48]} c5 {[%emt 0:00:29]} 14. N4b3 {[%emt 0:03:57]} Nxd2 {[%emt 0:02:06]} 15. Qxd2 {[%emt 0:00:29]} d4 {[%emt 0:00:15]} 16. Bf2 {[%emt 0:00:46]} Bc6 {[%emt 0:03:06]} 17. Kh1 {[%emt 0:19:02]} Qd5 {[%emt 0:05:29]} 18. Bg1 {[%emt 0:01:53]} O-O-O {[%emt 0:15:45]} 19. a4 {[%emt 0:04:48]} a5 {[%emt 0:06:59]} 20. Rf3 {[%emt 0:17:36]} c4 {[%emt 0:07:06]} 21. Nc1 {[%emt 0:01:57]} Qxf3 {[%emt 0:00:25]} 22. gxf3 {[%emt 0:00:11]} Bxf3+ {[%emt 0:00:04]} 23. Qg2 {[%emt 0:00:12]} Bxg2+ {[%emt 0:00:01]} 24. Kxg2 {[%emt 0:00:10]} d3 {[%emt 0:01:27]} 25. cxd3 {[%emt 0:00:33]} cxd3 {[%emt 0:00:18]} 26. Nb3 {[%emt 0:00:16]} d2 {[%emt 0:00:23]} 27. Rd1 {[%emt 0:00:12]} Bxg1 {[%emt 0:01:51]} 28. Kxg1 {[%emt 0:00:09]} Rd5 {[%emt 0:02:36]} 29. Rxd2 {[%emt 0:00:15]} Rxd2 {[%emt 0:00:15]} 30. Nxd2 {[%emt 0:00:05]} Rd8 {[%emt 0:00:05]} 31. Nc4 {[%emt 0:00:26]} Rd4 {[%emt 0:00:33]} 32. b3 {[%emt 0:00:54]} Rxf4 {[%emt 0:00:17]} 33. Nxa5 {[%emt 0:00:15]} Rf3 {[%emt 0:02:47]} 34. Kg2 {[%emt 0:01:28]} Re3 {[%emt 0:00:05]} 35. b4 {[%emt 0:00:39]} Ra3 {[%emt 0:00:37]} 36. b5 {[%emt 0:01:26]} Rxa4 {[%emt 0:00:10]} 37. Nc6 {[%emt 0:00:07]} Ra2+ {[%emt 0:00:31]} 38. Kg3 {[%emt 0:00:09]} Rb2 {[%emt 0:00:16]} 39. Nd4 {[%emt 0:00:13]} Rb4 {[%emt 0:01:41]} 0-1

[Event "EYCC 2017"]
[Site "Mamaia"]
[Date "2017.09.06"]
[Round "2"]
[White "Vetokhin, Savva"]
[Black "Yalcinkaya, Efe"]
[Result "1-0"]
[ECO "D00"]
[WhiteElo "1703"]
[BlackElo "1230"]
[Annotator "NA"]
[PlyCount "103"]
[EventDate "2017.??.??"]
[EventType "swiss"]
[EventCountry "ROU"]
[SourceTitle "playchess.com"]
[Source "ChessBase"]
[SourceQuality "1"]
[TimeControl "40/5400+30:1800+30"]

1. d4 {[%emt 0:00:00]} d5 {[%emt 0:00:17]} 2. Bf4 {[%emt 0:00:00]} Nf6 {[%emt 0:00:35]} 3. e3 {[%emt 0:00:03]} e6 {[%emt 0:01:26]} 4. Bd3 {[%emt 0:00:35]} c5 {[%emt 0:03:05]} 5. c3 {[%emt 0:00:10]} Nc6 {[%emt 0:01:25]} 6. Nd2 {[%emt 0:00:43]} Be7 {[%emt 0:02:19]} 7. h3 {[%emt 0:01:14]} O-O {[%emt 0:02:36]} 8. Ngf3 {[%emt 0:00:54]} c4 {[%emt 0:06:27]} 9. Bc2 {[%emt 0:00:23]} b5 {[%emt 0:01:06]} 10. O-O {[%emt 0:01:09]} Bb7 {[%emt 0:12:12]} 11. Ne5 {[%emt 0:01:47]} a5 {[%emt 0:03:24]} 12. Ndf3 {[%emt 0:03:16]} Nxe5 {[%emt 0:10:59]} 13. dxe5 {[%emt 0:01:03]} Ne4 {[%emt 0:01:19]} 14. Nd2 {[%emt 0:07:48]} Nxd2 {[%emt 0:04:23]} 15. Qxd2 {[%emt 0:00:09]} Qb6 {[%emt 0:08:06]} 16. Qe2 {[%emt 0:04:24]} f6 {[%emt 0:05:07]} 17. exf6 {[%emt 0:02:56]} Bxf6 {[%emt 0:03:04]} 18. Qh5 {[%emt 0:00:37]} g6 {[%emt 0:01:08]} 19. Qg4 {[%emt 0:00:56]} Bg7 {[%emt 0:05:46]} 20. Qg5 {[%emt 0:08:10]} Rae8 {[%emt 0:06:14]} 21. Be5 {[%emt 0:01:01]} Bxe5 {[%emt 0:00:24]} 22. Qxe5 {[%emt 0:00:05]} Qc6 {[%emt 0:00:29]} 23. f3 {[%emt 0:02:08]} b4 {[%emt 0:03:56]} 24. h4 {[%emt 0:02:40]} Qd7 {[%emt 0:01:43]} 25. Rac1 {[%emt 0:10:02]} Qg7 {[%emt 0:01:52]} 26. Qd6 {[%emt 0:01:29]} e5 {[%emt 0:00:33]} 27. cxb4 {[%emt 0:00:20]} Rf6 {[%emt 0:03:32]} 28. Qc5 {[%emt 0:00:27]} Rc8 {[%emt 0:01:31]} 29. Qb5 {[%emt 0:01:11]} Bc6 {[%emt 0:01:21]} 30. Qxa5 {[%emt 0:01:26]} Ra8 {[%emt 0:01:10]} 31. Qc5 {[%emt 0:02:00]} Qb7 {[%emt 0:02:00]} 32. e4 {[%emt 0:05:31]} Rxa2 {[%emt 0:01:34]} 33. exd5 {[%emt 0:00:10]} Bxd5 {[%emt 0:00:23]} 34. Rfd1 {[%emt 0:00:22]} Bxf3 {[%emt 0:01:05]} 35. gxf3 {[%emt 0:06:34]} Qxf3 {[%emt 0:00:08]} 36. Qd5+ {[%emt 0:00:06]} Qxd5 {[%emt 0:00:58]} 37. Rxd5 {[%emt 0:00:08]} Rxb2 {[%emt 0:00:50]} 38. b5 {[%emt 0:00:59]} Rb6 {[%emt 0:01:08]} 39. Ba4 {[%emt 0:05:34]} Rb4 {[%emt 0:00:31]} 40. Ra1 {[%emt 0:00:00]} Rb8 {[%emt 0:00:14]} 41. Rd6 {[%emt 0:01:08]} Rc8 {[%emt 0:00:38]} 42. Rb6 {[%emt 0:04:26]} c3 {[%emt 0:02:10]} 43. Rc6 {[%emt 0:00:30]} Ra8 {[%emt 0:00:26]} 44. Bb3+ {[%emt 0:00:08]} Rxb3 {[%emt 0:00:35]} 45. Rxa8+ {[%emt 0:00:08]} Kg7 {[%emt 0:00:10]} 46. b6 {[%emt 0:00:40]} e4 {[%emt 0:00:46]} 47. Ra7+ {[%emt 0:00:30]} Kh6 {[%emt 0:00:18]} 48. b7 {[%emt 0:00:58]} e3 {[%emt 0:00:25]} 49. Rxc3 {[%emt 0:00:42]} Rxc3 {[%emt 0:00:24]} 50. b8=Q {[%emt 0:00:06]} e2 {[%emt 0:00:22]} 51. Qf4+ {[%emt 0:00:07]} Kh5 {[%emt 0:00:17]} 52. Qg5# {[%emt 0:00:39]} 1-0

[Event "EYCC 2017"]
[Site "Mamaia"]
[Date "2017.09.06"]
[Round "2"]
[White "Sovina, Maria"]
[Black "Wikar, Martyna"]
[Result "1-0"]
[ECO "A43"]
[WhiteElo "1675"]
[BlackElo "1943"]
[Annotator "NA"]
[PlyCount "95"]
[EventDate "2017.??.??"]
[EventType "swiss"]
[EventCountry "ROU"]
[SourceTitle "playchess.com"]
[Source "ChessBase"]
[SourceQuality "1"]
[TimeControl "40/5400+30:1800+30"]

1. d4 {[%emt 0:00:00]} c5 {[%emt 0:00:18]} 2. d5 {[%emt 0:00:27]} d6 {[%emt 0:00:13]} 3. c4 {[%emt 0:00:33]} g6 {[%emt 0:00:24]} 4. Nc3 {[%emt 0:00:35]} Bg7 {[%emt 0:00:15]} 5. e4 {[%emt 0:00:33]} Nf6 {[%emt 0:01:28]} 6. Nf3 {[%emt 0:00:43]} O-O {[%emt 0:01:03]} 7. h3 {[%emt 0:01:12]} e6 {[%emt 0:06:45]} 8. Bd3 {[%emt 0:04:24]} exd5 {[%emt 0:00:38]} 9. exd5 {[%emt 0:00:12]} Re8+ {[%emt 0:01:04]} 10. Be3 {[%emt 0:00:11]} Bh6 {[%emt 0:11:45]} 11. Qd2 {[%emt 0:01:11]} Qe7 {[%emt 0:02:56]} 12. O-O-O {[%emt 0:00:51]} Bxe3 {[%emt 0:04:11]} 13. fxe3 {[%emt 0:00:32]} Na6 {[%emt 0:00:34]} 14. Rhe1 {[%emt 0:04:31]} Nb4 {[%emt 0:03:35]} 15. Bb1 {[%emt 0:06:27]} Bd7 {[%emt 0:05:15]} 16. a3 {[%emt 0:02:08]} Na6 {[%emt 0:04:07]} 17. e4 {[%emt 0:01:24]} Nh5 {[%emt 0:07:11]} 18. e5 {[%emt 0:06:41]} dxe5 {[%emt 0:03:20]} 19. Nxe5 {[%emt 0:18:23]} Qd6 {[%emt 0:01:55]} 20. Nxd7 {[%emt 0:01:43]} Qxd7 {[%emt 0:01:05]} 21. g4 {[%emt 0:01:50]} Nf6 {[%emt 0:03:20]} 22. Qf4 {[%emt 0:05:27]} Kg7 {[%emt 0:04:28]} 23. Rf1 {[%emt 0:01:15]} Qe7 {[%emt 0:01:15]} 24. Rf3 {[%emt 0:06:48]} Rad8 {[%emt 0:01:22]} 25. Rdf1 {[%emt 0:01:10]} Nd7 {[%emt 0:02:57]} 26. Qxf7+ {[%emt 0:02:19]} Qxf7 {[%emt 0:00:08]} 27. Rxf7+ {[%emt 0:00:04]} Kg8 {[%emt 0:00:31]} 28. Ne4 {[%emt 0:02:10]} Rf8 {[%emt 0:00:52]} 29. Rxf8+ {[%emt 0:01:01]} Rxf8 {[%emt 0:00:03]} 30. Rxf8+ {[%emt 0:00:24]} Kxf8 {[%emt 0:00:14]} 31. Nd6 {[%emt 0:03:19]} b6 {[%emt 0:01:31]} 32. Nc8 {[%emt 0:00:37]} Ne5 {[%emt 0:01:41]} 33. b3 {[%emt 0:00:21]} b5 {[%emt 0:05:15]} 34. cxb5 {[%emt 0:11:07]} Nc7 {[%emt 0:00:14]} 35. Nxa7 {[%emt 0:00:13]} Nxd5 {[%emt 0:00:11]} 36. Nc6 {[%emt 0:02:34]} Nd7 {[%emt 0:00:59]} 37. a4 {[%emt 0:01:56]} Nc7 {[%emt 0:05:38]} 38. Kd2 {[%emt 0:01:16]} Kf7 {[%emt 0:00:29]} 39. Bd3 {[%emt 0:01:28]} h5 {[%emt 0:00:16]} 40. gxh5 {[%emt 0:00:00]} gxh5 {[%emt 0:00:03]} 41. Bf5 {[%emt 0:03:49]} Nb6 {[%emt 0:03:10]} 42. a5 {[%emt 0:01:13]} Nbd5 {[%emt 0:01:11]} 43. b6 {[%emt 0:00:37]} Na6 {[%emt 0:00:11]} 44. Bd3 {[%emt 0:02:41]} Ndb4 {[%emt 0:02:34]} 45. Nxb4 {[%emt 0:00:31]} Nxb4 {[%emt 0:00:02]} 46. b7 {[%emt 0:00:09]} Nc6 {[%emt 0:00:06]} 47. a6 {[%emt 0:00:11]} Ke7 {[%emt 0:00:09]} 48. a7 {[%emt 0:00:10]} 1-0

[Event "EYCC 2017"]
[Site "Mamaia"]
[Date "2017.09.06"]
[Round "2"]
[White "Matasaru, Stephanie"]
[Black "Reuter, Elisa"]
[Result "1-0"]
[ECO "B31"]
[WhiteElo "1662"]
[BlackElo "1910"]
[Annotator "NA"]
[PlyCount "87"]
[EventDate "2017.??.??"]
[EventType "swiss"]
[EventCountry "ROU"]
[SourceTitle "playchess.com"]
[Source "ChessBase"]
[SourceQuality "1"]
[TimeControl "40/5400+30:1800+30"]

1. e4 {[%emt 0:00:00]} c5 {[%emt 0:00:03]} 2. Nf3 {[%emt 0:00:00]} Nc6 {[%emt 0:00:04]} 3. Bb5 {[%emt 0:00:00]} g6 {[%emt 0:00:05]} 4. Bxc6 {[%emt 0:00:09]} bxc6 {[%emt 0:00:04]} 5. O-O {[%emt 0:00:26]} Bg7 {[%emt 0:00:03]} 6. Re1 {[%emt 0:00:35]} e5 {[%emt 0:00:48]} 7. c3 {[%emt 0:00:19]} d6 {[%emt 0:00:37]} 8. d4 {[%emt 0:01:09]} cxd4 {[%emt 0:02:30]} 9. cxd4 {[%emt 0:00:15]} Bg4 {[%emt 0:04:06]} 10. dxe5 {[%emt 0:06:15]} dxe5 {[%emt 0:00:37]} 11. Nbd2 {[%emt 0:01:49]} Ne7 {[%emt 0:02:08]} 12. h3 {[%emt 0:01:51]} Be6 {[%emt 0:02:00]} 13. Qc2 {[%emt 0:06:29]} O-O {[%emt 0:01:49]} 14. Nc4 {[%emt 0:01:56]} Qc7 {[%emt 0:02:36]} 15. Bd2 {[%emt 0:04:35]} Bxc4 {[%emt 0:05:24]} 16. Qxc4 {[%emt 0:00:23]} Qb6 {[%emt 0:01:41]} 17. Bc3 {[%emt 0:06:15]} Qc7 {[%emt 0:05:19]} 18. Bb4 {[%emt 0:05:52]} Rac8 {[%emt 0:05:30]} 19. Rad1 {[%emt 0:04:22]} c5 {[%emt 0:02:14]} 20. Rc1 {[%emt 0:03:10]} Nc6 {[%emt 0:21:01]} 21. Bxc5 {[%emt 0:04:42]} Rfd8 {[%emt 0:04:58]} 22. Be3 {[%emt 0:05:29]} Qb7 {[%emt 0:02:06]} 23. Qe2 {[%emt 0:02:29]} Nb4 {[%emt 0:01:45]} 24. Rxc8 {[%emt 0:01:40]} Rxc8 {[%emt 0:00:19]} 25. a3 {[%emt 0:01:58]} Nc2 {[%emt 0:02:21]} 26. Rc1 {[%emt 0:01:38]} Nxe3 {[%emt 0:01:57]} 27. Rxc8+ {[%emt 0:00:32]} Qxc8 {[%emt 0:00:09]} 28. Qxe3 {[%emt 0:00:16]} Qc7 {[%emt 0:01:40]} 29. Qc3 {[%emt 0:03:38]} Qxc3 {[%emt 0:03:40]} 30. bxc3 {[%emt 0:00:11]} f6 {[%emt 0:00:09]} 31. Kf1 {[%emt 0:00:53]} Kf7 {[%emt 0:01:36]} 32. Ke2 {[%emt 0:01:43]} Ke6 {[%emt 0:00:45]} 33. Nd2 {[%emt 0:01:48]} Bf8 {[%emt 0:03:05]} 34. a4 {[%emt 0:00:59]} f5 {[%emt 0:01:53]} 35. f3 {[%emt 0:02:56]} Bc5 {[%emt 0:02:11]} 36. Nb3 {[%emt 0:01:18]} Bb6 {[%emt 0:00:33]} 37. c4 {[%emt 0:01:27]} Kd6 {[%emt 0:01:36]} 38. Kd3 {[%emt 0:02:52]} f4 {[%emt 0:05:37]} 39. Kc3 {[%emt 0:02:10]} a5 {[%emt 0:06:19]} 40. c5+ {[%emt 0:00:00]} Bxc5 {[%emt 0:00:32]} 41. Nxa5 {[%emt 0:02:04]} Bd4+ {[%emt 0:03:54]} 42. Kb4 {[%emt 0:01:30]} Kc7 {[%emt 0:00:57]} 43. Kb5 {[%emt 0:01:52]} g5 {[%emt 0:02:55]} 44. Nc6 {[%emt 0:02:05]} 1-0

[Event "EYCC 2017"]
[Site "Mamaia"]
[Date "2017.09.06"]
[Round "2"]
[White "Verma, Shlok"]
[Black "Tolmacevs, Artjoms"]
[Result "1-0"]
[ECO "A40"]
[WhiteElo "1658"]
[BlackElo "1201"]
[Annotator "NA"]
[PlyCount "91"]
[EventDate "2017.??.??"]
[EventType "swiss"]
[EventCountry "ROU"]
[SourceTitle "playchess.com"]
[Source "ChessBase"]
[SourceQuality "1"]
[TimeControl "40/5400+30:1800+30"]

1. d4 {[%emt 0:00:00]} c6 {[%emt 0:00:08]} 2. Bf4 {[%emt 0:02:58]} d5 {[%emt 0:00:13]} 3. Nf3 {[%emt 0:00:53]} Nf6 {[%emt 0:00:17]} 4. e3 {[%emt 0:01:40]} Bf5 {[%emt 0:00:10]} 5. Bd3 {[%emt 0:01:07]} Bxd3 {[%emt 0:00:27]} 6. cxd3 {[%emt 0:00:30]} e6 {[%emt 0:00:52]} 7. Nc3 {[%emt 0:03:28]} Qb6 {[%emt 0:01:12]} 8. Rb1 {[%emt 0:01:48]} Nbd7 {[%emt 0:01:02]} 9. O-O {[%emt 0:00:33]} Be7 {[%emt 0:01:19]} 10. a3 {[%emt 0:02:26]} a5 {[%emt 0:01:05]} 11. Re1 {[%emt 0:02:55]} c5 {[%emt 0:05:45]} 12. dxc5 {[%emt 0:08:15]} Bxc5 {[%emt 0:00:12]} 13. d4 {[%emt 0:03:25]} Bd6 {[%emt 0:02:39]} 14. Ne5 {[%emt 0:07:09]} Qc7 {[%emt 0:02:08]} 15. Nb5 {[%emt 0:02:09]} Qb6 {[%emt 0:05:02]} 16. Nxd6+ {[%emt 0:00:07]} Qxd6 {[%emt 0:00:45]} 17. Nxf7 {[%emt 0:00:15]} Qf8 {[%emt 0:01:46]} 18. Nxh8 {[%emt 0:00:09]} Qxh8 {[%emt 0:00:49]} 19. Qb3 {[%emt 0:00:23]} Ra7 {[%emt 0:01:16]} 20. Rec1 {[%emt 0:00:39]} Kf7 {[%emt 0:00:44]} 21. Rc7 {[%emt 0:00:30]} Qa8 {[%emt 0:01:26]} 22. Rbc1 {[%emt 0:01:18]} Ke7 {[%emt 0:02:06]} 23. Rc8 {[%emt 0:00:11]} Qxc8 24. Rxc8 {[%emt 0:00:18]} b6 {[%emt 0:02:03]} 25. Bg5 {[%emt 0:00:46]} Rb7 {[%emt 0:00:22]} 26. Bxf6+ {[%emt 0:00:18]} Nxf6 {[%emt 0:00:35]} 27. Qc3 {[%emt 0:00:32]} Nd7 {[%emt 0:00:36]} 28. Qc6 {[%emt 0:01:07]} Ra7 {[%emt 0:00:24]} 29. Ra8 {[%emt 0:00:19]} Rxa8 {[%emt 0:00:27]} 30. Qxa8 {[%emt 0:00:09]} h6 {[%emt 0:00:24]} 31. b4 {[%emt 0:00:23]} axb4 {[%emt 0:00:21]} 32. axb4 {[%emt 0:00:07]} Kf7 {[%emt 0:00:15]} 33. Qb7 {[%emt 0:00:28]} Ke7 {[%emt 0:00:41]} 34. Kf1 {[%emt 0:00:09]} g6 {[%emt 0:01:25]} 35. Ke2 {[%emt 0:00:43]} Kd6 {[%emt 0:02:27]} 36. Kd3 {[%emt 0:03:11]} e5 {[%emt 0:00:45]} 37. Kc3 {[%emt 0:00:27]} e4 {[%emt 0:01:04]} 38. b5 {[%emt 0:00:30]} Ke7 {[%emt 0:01:35]} 39. Qxd5 {[%emt 0:00:18]} Nf6 {[%emt 0:00:32]} 40. Qb7+ {[%emt 0:00:00]} Kd8 {[%emt 0:00:45]} 41. Qxb6+ {[%emt 0:00:40]} Ke7 {[%emt 0:00:24]} 42. Qxf6+ {[%emt 0:00:00]} Kd7 {[%emt 0:00:35]} 43. b6 {[%emt 0:00:00]} Ke8 {[%emt 0:00:17]} 44. Qg7 {[%emt 0:00:00]} Kd8 {[%emt 0:00:28]} 45. b7 {[%emt 0:00:00]} Ke8 {[%emt 0:00:17]} 46. b8=R# {[%emt 0:00:00]} 1-0

[Event "EYCC 2017"]
[Site "Mamaia"]
[Date "2017.09.06"]
[Round "2"]
[White "Gaj, Magdalena"]
[Black "Trifoi, Mihaela-Ioana"]
[Result "0-1"]
[ECO "D35"]
[WhiteElo "1657"]
[BlackElo "1864"]
[Annotator "NA"]
[PlyCount "74"]
[EventDate "2017.??.??"]
[EventType "swiss"]
[EventCountry "ROU"]
[SourceTitle "playchess.com"]
[Source "ChessBase"]
[SourceQuality "1"]
[TimeControl "40/5400+30:1800+30"]

1. d4 {[%emt 0:00:00]} d5 {[%emt 0:00:32]} 2. c4 {[%emt 0:00:00]} e6 {[%emt 0:00:29]} 3. Nc3 {[%emt 0:00:02]} Nf6 {[%emt 0:00:27]} 4. cxd5 {[%emt 0:00:21]} exd5 {[%emt 0:00:19]} 5. Bg5 {[%emt 0:00:22]} Be7 {[%emt 0:01:06]} 6. Nf3 {[%emt 0:02:00]} c6 {[%emt 0:01:05]} 7. Qc2 {[%emt 0:00:30]} Be6 {[%emt 0:00:56]} 8. e3 {[%emt 0:00:29]} Nbd7 {[%emt 0:01:05]} 9. Bd3 {[%emt 0:02:05]} O-O {[%emt 0:02:45]} 10. O-O {[%emt 0:01:19]} h6 {[%emt 0:01:41]} 11. Bh4 {[%emt 0:01:05]} Rc8 {[%emt 0:02:33]} 12. Rab1 {[%emt 0:04:47]} c5 {[%emt 0:06:59]} 13. a3 {[%emt 0:08:29]} a6 {[%emt 0:06:55]} 14. Bf5 {[%emt 0:04:05]} Bxf5 {[%emt 0:12:55]} 15. Qxf5 {[%emt 0:00:10]} g6 {[%emt 0:00:44]} 16. Qc2 {[%emt 0:05:13]} cxd4 {[%emt 0:01:06]} 17. Nxd4 {[%emt 0:00:44]} Ne4 {[%emt 0:03:03]} 18. Bxe7 {[%emt 0:01:26]} Qxe7 {[%emt 0:00:07]} 19. Nxd5 {[%emt 0:06:02]} Qe5 {[%emt 0:05:02]} 20. Nc3 {[%emt 0:00:27]} Nxc3 {[%emt 0:01:51]} 21. bxc3 {[%emt 0:00:26]} Nc5 {[%emt 0:01:27]} 22. Rb4 {[%emt 0:11:13]} Rfd8 {[%emt 0:03:26]} 23. Rfb1 {[%emt 0:08:04]} Rd7 {[%emt 0:02:40]} 24. Nf3 {[%emt 0:04:40]} Qe7 {[%emt 0:00:45]} 25. Rd4 {[%emt 0:04:19]} Rdc7 {[%emt 0:00:55]} 26. a4 {[%emt 0:05:17]} Ne6 {[%emt 0:01:24]} 27. Rd3 {[%emt 0:00:51]} Qf6 {[%emt 0:07:19]} 28. Nd4 {[%emt 0:05:03]} Nc5 {[%emt 0:00:32]} 29. Rdd1 {[%emt 0:00:54]} Qe7 {[%emt 0:01:17]} 30. Rb6 {[%emt 0:03:10]} Qe8 {[%emt 0:03:20]} 31. Rb4 {[%emt 0:02:59]} Ne4 {[%emt 0:10:15]} 32. Qb2 {[%emt 0:06:57]} Nxc3 {[%emt 0:00:33]} 33. Re1 {[%emt 0:01:49]} Nxa4 {[%emt 0:00:20]} 34. Qb3 {[%emt 0:01:10]} Nc5 {[%emt 0:00:43]} 35. Qb1 {[%emt 0:00:35]} Qe7 {[%emt 0:01:24]} 36. Rc1 {[%emt 0:01:56]} Nd3 {[%emt 0:01:24]} 37. Rxc7 {[%emt 0:02:09]} Rxc7 {[%emt 0:00:06]} 0-1

[Event "EYCC 2017"]
[Site "Mamaia"]
[Date "2017.09.06"]
[Round "2"]
[White "Bellahcene, Sofia"]
[Black "Toncheva, Nadya"]
[Result "0-1"]
[ECO "B43"]
[WhiteElo "1652"]
[BlackElo "1802"]
[Annotator "NA"]
[PlyCount "82"]
[EventDate "2017.??.??"]
[EventType "swiss"]
[EventCountry "ROU"]
[SourceTitle "playchess.com"]
[Source "ChessBase"]
[SourceQuality "1"]
[TimeControl "40/5400+30:1800+30"]

1. e4 {[%emt 0:00:00]} c5 {[%emt 0:00:03]} 2. Nf3 {[%emt 0:00:20]} e6 {[%emt 0:00:04]} 3. d4 {[%emt 0:00:45]} cxd4 {[%emt 0:00:06]} 4. Nxd4 {[%emt 0:00:28]} a6 {[%emt 0:00:05]} 5. Nc3 {[%emt 0:00:47]} Qc7 {[%emt 0:06:56]} 6. g3 {[%emt 0:00:54]} Nf6 {[%emt 0:00:27]} 7. Bg2 {[%emt 0:00:49]} d6 {[%emt 0:04:22]} 8. O-O {[%emt 0:02:03]} Be7 {[%emt 0:01:37]} 9. Kh1 {[%emt 0:01:30]} Nc6 {[%emt 0:00:25]} 10. Nb3 {[%emt 0:00:40]} O-O {[%emt 0:05:12]} 11. a4 {[%emt 0:02:03]} b6 {[%emt 0:01:10]} 12. f4 {[%emt 0:02:43]} Bb7 {[%emt 0:04:26]} 13. g4 {[%emt 0:03:40]} Nd7 {[%emt 0:00:35]} 14. g5 {[%emt 0:07:20]} Nc5 {[%emt 0:01:28]} 15. Nxc5 {[%emt 0:01:47]} dxc5 {[%emt 0:00:16]} 16. Qh5 {[%emt 0:09:29]} Nd4 {[%emt 0:00:58]} 17. Rf2 {[%emt 0:02:07]} b5 {[%emt 0:10:47]} 18. Be3 {[%emt 0:13:26]} Rfd8 {[%emt 0:10:09]} 19. Nd1 {[%emt 0:13:28]} g6 {[%emt 0:05:44]} 20. Qh4 {[%emt 0:03:07]} Rd7 {[%emt 0:02:04]} 21. Qg4 {[%emt 0:04:09]} Bf8 {[%emt 0:01:56]} 22. h4 {[%emt 0:01:21]} Bg7 {[%emt 0:07:49]} 23. h5 {[%emt 0:01:46]} Rad8 {[%emt 0:01:09]} 24. hxg6 {[%emt 0:00:58]} hxg6 {[%emt 0:00:04]} 25. axb5 {[%emt 0:01:03]} axb5 {[%emt 0:00:08]} 26. Kg1 {[%emt 0:05:22]} Bc6 {[%emt 0:01:16]} 27. e5 {[%emt 0:02:29]} Bxg2 {[%emt 0:01:08]} 28. Rxg2 {[%emt 0:00:37]} Qc6 {[%emt 0:00:37]} 29. Bxd4 {[%emt 0:01:46]} Rxd4 {[%emt 0:00:34]} 30. Ne3 {[%emt 0:01:57]} Bxe5 {[%emt 0:00:39]} 31. fxe5 {[%emt 0:00:12]} Rxg4 {[%emt 0:00:07]} 32. Nxg4 {[%emt 0:00:09]} Qf3 {[%emt 0:08:20]} 33. Nf6+ {[%emt 0:02:29]} Kg7 {[%emt 0:00:26]} 34. b3 {[%emt 0:00:41]} Qe3+ {[%emt 0:00:40]} 35. Kf1 {[%emt 0:00:41]} Qxe5 {[%emt 0:00:35]} 36. Re1 {[%emt 0:00:03]} Qf5+ {[%emt 0:00:18]} 37. Kg1 {[%emt 0:00:11]} Qf4 {[%emt 0:04:26]} 38. Rf1 Qd4+ {[%emt 0:00:25]} 39. Kh1 {[%emt 0:01:07]} Rh8+ {[%emt 0:00:08]} 40. Rh2 {[%emt 0:00:00]} Rxh2+ {[%emt 0:00:11]} 41. Kxh2 {[%emt 0:00:06]} Qh4+ {[%emt 0:00:06]} 0-1